[Event "Rapid Tournament (RAP)"]
[Site "Biel, Switzerland"]
[Date "2026.07.12"]
[Round "9.36"]
[White "Tcheau, Alain"]
[Black "Groux, Mathias"]
[Result "1-0"]
[TimeControl "15 + 5"]
[WhiteTitle "-"]
[BlackTitle "-"]
[WhiteFideId "1306014"]
[BlackFideId "1360752"]
[WhiteElo "1932"]
[BlackElo "1813"]

1. h3 {[%clk 00:15:07]} {[%emt 00:00:03]} e5 {[%clk 00:14:50]} {[%emt
00:00:20]} 2. c3 {[%clk 00:15:10]} {[%emt 00:00:01]} Nf6 {[%clk 00:14:40]}
{[%emt 00:00:15]} 3. d4 {[%clk 00:15:13]} {[%emt 00:00:02]} Nc6 {[%clk
00:14:42]} {[%emt 00:00:04]} 4. dxe5 {[%clk 00:15:10]} {[%emt 00:00:09]} Nxe5
{[%clk 00:14:42]} {[%emt 00:00:03]} 5. Bf4 {[%clk 00:15:12]} {[%emt 00:00:04]}
Ng6 {[%clk 00:14:19]} {[%emt 00:00:27]} 6. Bh2 {[%clk 00:15:13]} {[%emt
00:00:04]} d5 {[%clk 00:14:16]} {[%emt 00:00:08]} 7. e3 {[%clk 00:15:16]}
{[%emt 00:00:03]} c6 {[%clk 00:13:39]} {[%emt 00:00:42]} 8. Nf3 {[%clk
00:15:18]} {[%emt 00:00:02]} Qb6 {[%clk 00:13:39]} {[%emt 00:00:04]} 9. Qb3
{[%clk 00:15:10]} {[%emt 00:00:14]} Be6 {[%clk 00:13:21]} {[%emt 00:00:23]} 10.
Qxb6 {[%clk 00:15:04]} {[%emt 00:00:12]} axb6 {[%clk 00:13:23]} {[%emt
00:00:02]} 11. a3 {[%clk 00:15:00]} {[%emt 00:00:10]} Nd7 {[%clk 00:13:03]}
{[%emt 00:00:25]} 12. Nbd2 {[%clk 00:15:01]} {[%emt 00:00:04]} Nc5 {[%clk
00:12:20]} {[%emt 00:00:47]} 13. Be2 {[%clk 00:14:57]} {[%emt 00:00:10]} Bf5
{[%clk 00:11:54]} {[%emt 00:00:31]} 14. O-O {[%clk 00:14:40]} {[%emt 00:00:21]}
Be7 {[%clk 00:11:27]} {[%emt 00:00:32]} 15. Bc7 {[%clk 00:13:00]} {[%emt
00:01:45]} b5 {[%clk 00:11:04]} {[%emt 00:00:28]} 16. Bb6 {[%clk 00:13:02]}
{[%emt 00:00:04]} O-O {[%clk 00:10:41]} {[%emt 00:00:27]} 17. Bxc5 {[%clk
00:13:03]} {[%emt 00:00:04]} Bxc5 {[%clk 00:10:43]} {[%emt 00:00:02]} 18. Nd4
{[%clk 00:12:51]} {[%emt 00:00:18]} Be6 {[%clk 00:10:30]} {[%emt 00:00:19]} 19.
N2b3 {[%clk 00:12:43]} {[%emt 00:00:13]} Bd6 {[%clk 00:09:57]} {[%emt
00:00:37]} 20. Nxe6 {[%clk 00:12:00]} {[%emt 00:00:48]} fxe6 {[%clk 00:09:59]}
{[%emt 00:00:03]} 21. Bg4 {[%clk 00:12:01]} {[%emt 00:00:04]} Rf6 {[%clk
00:09:41]} {[%emt 00:00:23]} 22. Nd4 {[%clk 00:11:56]} {[%emt 00:00:11]} Re8
{[%clk 00:08:46]} {[%emt 00:01:00]} 23. f4 {[%clk 00:11:46]} {[%emt 00:00:15]}
e5 {[%clk 00:07:56]} {[%emt 00:00:54]} 24. Nf5 {[%clk 00:09:28]} {[%emt
00:02:24]} Bc5 {[%clk 00:06:52]} {[%emt 00:01:08]} 25. fxe5 {[%clk 00:08:34]}
{[%emt 00:00:59]} Nxe5 {[%clk 00:06:32]} {[%emt 00:00:24]} 26. Be2 {[%clk
00:06:13]} {[%emt 00:02:28]} Nc4 {[%clk 00:04:15]} {[%emt 00:02:20]} 27. Bxc4
{[%clk 00:05:55]} {[%emt 00:00:24]} bxc4 {[%clk 00:03:41]} {[%emt 00:00:39]} 28.
Rae1 {[%clk 00:05:51]} {[%emt 00:00:10]} Rfe6 {[%clk 00:03:32]} {[%emt
00:00:13]} 29. Rf3 {[%clk 00:05:21]} {[%emt 00:00:35]} g6 {[%clk 00:03:12]}
{[%emt 00:00:25]} 30. Nd4 {[%clk 00:05:04]} {[%emt 00:00:23]} Re4 {[%clk
00:02:59]} {[%emt 00:00:17]} 31. Kf2 {[%clk 00:04:50]} {[%emt 00:00:19]} Kg7
{[%clk 00:02:44]} {[%emt 00:00:20]} 32. a4 {[%clk 00:04:44]} {[%emt 00:00:12]}
h6 {[%clk 00:02:28]} {[%emt 00:00:19]} 33. a5 {[%clk 00:03:26]} {[%emt
00:01:25]} R8e7 {[%clk 00:02:26]} {[%emt 00:00:07]} 34. a6 {[%clk 00:03:28]}
{[%emt 00:00:03]} bxa6 {[%clk 00:02:02]} {[%emt 00:00:29]} 35. Nxc6 {[%clk
00:03:25]} {[%emt 00:00:07]} R7e6 {[%clk 00:01:51]} {[%emt 00:00:16]} 36. Nd4
{[%clk 00:03:06]} {[%emt 00:00:24]} Re7 {[%clk 00:01:48]} {[%emt 00:00:07]} 37.
Ra1 {[%clk 00:03:06]} {[%emt 00:00:07]} Ra7 {[%emt 00:00:20]} 38. Ra5 {[%clk
00:03:07]} Bxd4 {[%clk 00:01:30]} {[%emt 00:00:11]} 39. exd4 {[%clk 00:02:44]}
{[%emt 00:00:29]} Rae7 {[%clk 00:01:15]} {[%emt 00:00:20]} 40. Rxa6 {[%clk
00:02:36]} {[%emt 00:00:13]} Re2+ {[%clk 00:01:18]} {[%emt 00:00:02]} 41. Kg3
{[%clk 00:02:39]} {[%emt 00:00:01]} Rxb2 {[%clk 00:01:20]} {[%emt 00:00:02]} 42.
Rff6 {[%clk 00:02:21]} {[%emt 00:00:25]} Re3+ {[%clk 00:00:36]} {[%emt
00:00:48]} 43. Kh2 {[%clk 00:02:14]} {[%emt 00:00:13]} Ree2 {[%clk 00:00:20]}
{[%emt 00:00:21]} 44. Rxg6+ {[%clk 00:02:17]} {[%emt 00:00:02]} Kf7 {[%clk
00:00:23]} {[%emt 00:00:02]} 45. Raf6+ {[%clk 00:02:17]} {[%emt 00:00:04]} Ke7
{[%clk 00:00:27]} {[%emt 00:00:02]} 46. h4 {[%clk 00:01:54]} {[%emt 00:00:28]}
Rbc2 {[%clk 00:00:25]} {[%emt 00:00:07]} 47. h5 {[%clk 00:01:55]} {[%emt
00:00:04]} Rxc3 {[%clk 00:00:16]} {[%emt 00:00:14]} 48. Rd6 {[%clk 00:01:34]}
{[%emt 00:00:26]} Rc1 {[%clk 00:00:00]} {[%emt 00:00:16]} 1-0

[Event "Rapid Tournament (RAP)"]
[Site "Biel, Switzerland"]
[Date "2026.07.12"]
[Round "9.37"]
[White "Mueller, Ladina"]
[Black "Wilhelm, Serge"]
[Result "0-1"]
[TimeControl "15 + 5"]
[WhiteTitle "-"]
[BlackTitle "-"]
[WhiteFideId "1351907"]
[BlackFideId "1305808"]
[WhiteElo "1807"]
[BlackElo "1923"]

1. c4 {[%clk 00:15:05]} Nf6 {[%clk 00:15:05]} 2. g3 {[%clk 00:15:11]} {[%emt
03:26:59]} e6 {[%clk 00:15:13]} 3. Bg2 {[%clk 00:15:14]} {[%emt 00:00:02]} d5
{[%clk 00:15:17]} 4. cxd5 {[%clk 00:15:18]} {[%emt 00:00:03]} exd5 {[%clk
00:15:21]} 5. d4 {[%clk 00:15:21]} {[%emt 00:00:03]} c6 {[%clk 00:15:05]} 6.
Bg5 {[%clk 00:15:09]} {[%emt 00:00:37]} h6 {[%clk 00:14:53]} 7. Bxf6 {[%clk
00:14:58]} {[%emt 00:00:33]} Qxf6 {[%clk 00:14:56]} 8. e3 {[%clk 00:14:54]}
{[%emt 00:00:11]} Bd6 {[%clk 00:14:54]} 9. Nc3 {[%clk 00:14:45]} {[%emt
00:00:21]} O-O {[%clk 00:14:54]} 10. Nf3 {[%clk 00:14:46]} {[%emt 00:00:08]}
Re8 {[%clk 00:14:38]} 11. O-O {[%clk 00:14:45]} {[%emt 00:00:26]} Bg4 {[%clk
00:14:31]} 12. h3 {[%clk 00:14:40]} {[%emt 00:00:23]} Bh5 {[%clk 00:14:24]} 13.
g4 {[%clk 00:14:24]} {[%emt 00:00:33]} Bg6 {[%clk 00:14:27]} 14. Qb3 {[%clk
00:14:24]} 0-1

[Event "Rapid Tournament (RAP)"]
[Site "Biel, Switzerland"]
[Date "2026.07.12"]
[Round "9.38"]
[White "Lopez, Manuel"]
[Black "Fortier, Nicolas"]
[Result "1/2-1/2"]
[TimeControl "15 + 5"]
[WhiteTitle "-"]
[BlackTitle "-"]
[WhiteFideId "1306324"]
[BlackFideId "1308750"]
[WhiteElo "1916"]
[BlackElo "1810"]

1. e4 {[%clk 00:15:08]} {[%emt 00:00:03]} e5 {[%clk 00:15:08]} {[%emt
00:00:02]} 2. Nf3 {[%clk 00:15:11]} {[%emt 00:00:01]} Nc6 {[%clk 00:15:11]}
{[%emt 00:00:05]} 3. Bb5 {[%clk 00:15:14]} a6 {[%clk 00:15:14]} {[%emt
00:00:02]} 4. Ba4 {[%clk 00:15:15]} {[%emt 00:00:05]} Nf6 {[%clk 00:15:17]}
{[%emt 00:00:01]} 5. d3 {[%clk 00:15:18]} Bc5 {[%clk 00:15:17]} {[%emt
00:00:05]} 6. Be3 {[%clk 00:15:22]} {[%emt 00:00:02]} Bxe3 {[%clk 00:15:05]}
{[%emt 00:00:17]} 7. fxe3 {[%clk 00:15:25]} {[%emt 00:00:02]} b5 {[%clk
00:15:03]} {[%emt 00:00:07]} 8. Bb3 {[%clk 00:15:28]} {[%emt 00:00:02]} O-O
{[%clk 00:14:58]} {[%emt 00:00:09]} 9. O-O {[%clk 00:15:17]} {[%emt 00:00:16]}
d5 {[%clk 00:14:42]} {[%emt 00:00:22]} 10. exd5 {[%clk 00:15:09]} {[%emt
00:00:13]} Nxd5 {[%clk 00:14:44]} {[%emt 00:00:03]} 11. e4 {[%clk 00:14:51]}
{[%emt 00:00:23]} Ne3 {[%clk 00:14:15]} {[%emt 00:00:34]} 12. Qe2 {[%clk
00:14:51]} {[%emt 00:00:04]} Nxf1 {[%clk 00:14:15]} {[%emt 00:00:05]} 13. Qxf1
{[%clk 00:14:55]} {[%emt 00:00:01]} Qe7 {[%clk 00:13:50]} {[%emt 00:00:31]} 14.
c3 {[%clk 00:14:53]} {[%emt 00:00:07]} Be6 {[%clk 00:13:22]} {[%emt 00:00:33]}
15. Bc2 {[%clk 00:14:38]} {[%emt 00:00:20]} Rad8 {[%clk 00:13:11]} {[%emt
00:00:16]} 16. Nbd2 {[%clk 00:14:38]} {[%emt 00:00:04]} f6 {[%clk 00:13:02]}
{[%emt 00:00:14]} 17. Rd1 {[%clk 00:14:33]} {[%emt 00:00:10]} Na5 {[%clk
00:12:51]} {[%emt 00:00:17]} 18. b4 {[%clk 00:14:20]} {[%emt 00:00:18]} Nc6
{[%clk 00:12:45]} {[%emt 00:00:11]} 19. Nb3 {[%clk 00:14:02]} {[%emt 00:00:23]}
Bf7 {[%clk 00:12:06]} {[%emt 00:00:44]} 20. Nc5 {[%clk 00:13:58]} {[%emt
00:00:09]} a5 {[%clk 00:11:46]} {[%emt 00:00:25]} 21. a3 {[%clk 00:13:57]}
{[%emt 00:00:07]} axb4 {[%clk 00:11:46]} {[%emt 00:00:04]} 22. axb4 {[%clk
00:14:00]} {[%emt 00:00:01]} Ra8 {[%clk 00:11:26]} {[%emt 00:00:26]} 23. Nh4
{[%clk 00:13:41]} {[%emt 00:00:24]} Ra3 {[%clk 00:10:06]} {[%emt 00:01:26]} 24.
Nf5 {[%clk 00:13:25]} {[%emt 00:00:21]} Qe8 {[%clk 00:09:55]} {[%emt 00:00:15]}
25. c4 {[%clk 00:12:25]} {[%emt 00:01:05]} Nxb4 {[%clk 00:09:34]} {[%emt
00:00:26]} 26. Bb1 {[%clk 00:11:53]} {[%emt 00:00:37]} Na6 {[%clk 00:08:00]}
{[%emt 00:01:39]} 27. Nxa6 {[%clk 00:09:11]} {[%emt 00:02:47]} Rxa6 {[%clk
00:08:02]} {[%emt 00:00:03]} 28. c5 {[%clk 00:08:10]} {[%emt 00:01:06]} Be6
{[%clk 00:07:03]} {[%emt 00:01:05]} 29. Rd2 {[%clk 00:06:27]} {[%emt 00:01:47]}
Bxf5 {[%clk 00:06:26]} {[%emt 00:00:42]} 30. Qxf5 {[%clk 00:06:30]} {[%emt
00:00:01]} Qc8 {[%clk 00:05:54]} {[%emt 00:00:38]} 31. Qf3 {[%clk 00:05:47]}
{[%emt 00:00:48]} Rc6 {[%clk 00:05:22]} {[%emt 00:00:38]} 32. Ba2+ {[%clk
00:05:42]} {[%emt 00:00:09]} Kh8 {[%clk 00:05:24]} {[%emt 00:00:03]} 33. Rc2
{[%clk 00:05:30]} {[%emt 00:00:17]} Ra6 {[%clk 00:05:08]} {[%emt 00:00:21]} 34.
c6 {[%clk 00:04:49]} {[%emt 00:00:46]} Qa8 {[%clk 00:05:04]} {[%emt 00:00:09]}
35. Qf2 {[%clk 00:04:15]} {[%emt 00:00:40]} Rd8 {[%clk 00:04:22]} {[%emt
00:00:46]} 36. h4 {[%clk 00:03:07]} {[%emt 00:01:13]} Rxd3 {[%clk 00:04:10]}
{[%emt 00:00:16]} 37. Be6 {[%clk 00:02:55]} {[%emt 00:00:18]} Qa7 {[%clk
00:03:37]} {[%emt 00:00:38]} 38. Qxa7 {[%clk 00:02:31]} {[%emt 00:00:29]} Rxa7
{[%clk 00:03:41]} {[%emt 00:00:01]} 39. Rb2 {[%clk 00:02:35]} {[%emt 00:00:02]}
Ra5 {[%clk 00:03:26]} {[%emt 00:00:20]} 40. Kh2 {[%clk 00:02:16]} {[%emt
00:00:23]} g6 {[%clk 00:03:05]} {[%emt 00:00:26]} 41. g4 {[%clk 00:02:07]}
{[%emt 00:00:15]} Kg7 {[%clk 00:03:00]} {[%emt 00:00:09]} 42. g5 {[%clk
00:01:47]} {[%emt 00:00:25]} Rd4 {[%clk 00:02:50]} {[%emt 00:00:15]} 43. Rf2
{[%clk 00:01:29]} {[%emt 00:00:22]} f5 {[%clk 00:02:19]} {[%emt 00:00:37]} 44.
exf5 {[%clk 00:01:32]} {[%emt 00:00:03]} gxf5 {[%clk 00:02:08]} {[%emt
00:00:16]} 45. Rxf5 {[%clk 00:01:04]} {[%emt 00:00:32]} Rxh4+ {[%clk 00:02:10]}
{[%emt 00:00:03]} 46. Kg3 {[%clk 00:01:08]} Rf4 {[%clk 00:02:07]} {[%emt
00:00:07]} 47. Rxe5 {[%clk 00:01:09]} {[%emt 00:00:05]} Rf1 {[%clk 00:01:56]}
{[%emt 00:00:16]} 48. Bd5 {[%clk 00:00:53]} {[%emt 00:00:21]} Ra7 {[%clk
00:01:28]} {[%emt 00:00:33]} 49. Be4 {[%clk 00:00:47]} {[%emt 00:00:11]} Rg1+
{[%clk 00:01:21]} {[%emt 00:00:12]} 50. Kf4 {[%clk 00:00:32]} {[%emt 00:00:19]}
Rf1+ {[%clk 00:01:13]} {[%emt 00:00:14]} 51. Kg4 {[%clk 00:00:32]} {[%emt
00:00:05]} Ra4 {[%clk 00:01:10]} {[%emt 00:00:08]} 52. Re7+ {[%clk 00:00:32]}
{[%emt 00:00:05]} Kf8 {[%clk 00:01:10]} {[%emt 00:00:05]} 53. Re5 {[%clk
00:00:35]} {[%emt 00:00:02]} b4 {[%clk 00:01:06]} {[%emt 00:00:09]} 54. Bxh7
{[%clk 00:00:29]} {[%emt 00:00:11]} b3+ {[%clk 00:01:08]} {[%emt 00:00:03]} 55.
Kh5 {[%clk 00:00:33]} b2 {[%clk 00:00:57]} {[%emt 00:00:16]} 56. Bd3 {[%clk
00:00:21]} {[%emt 00:00:17]} Rh1+ {[%clk 00:00:58]} {[%emt 00:00:04]} 57. Kg6
{[%clk 00:00:25]} {[%emt 00:00:01]} b1=Q {[%clk 00:00:36]} {[%emt 00:00:27]} 58.
Bxb1 {[%clk 00:00:24]} {[%emt 00:00:07]} Rxb1 {[%clk 00:00:39]} {[%emt
00:00:01]} 59. Rd5 {[%clk 00:00:23]} {[%emt 00:00:07]} Rb8 {[%clk 00:00:33]}
{[%emt 00:00:10]} 60. Rd7 {[%clk 00:00:25]} {[%emt 00:00:04]} Ra7 {[%clk
00:00:31]} {[%emt 00:00:07]} 61. Kf6 {[%clk 00:00:28]} {[%emt 00:00:01]} Re8
{[%clk 00:00:31]} {[%emt 00:00:05]} 62. g6 {[%clk 00:00:32]} {[%emt 00:00:01]}
Ra1 {[%clk 00:00:30]} {[%emt 00:00:06]} 63. Rf7+ {[%clk 00:00:35]} {[%emt
00:00:01]} Kg8 {[%clk 00:00:34]} {[%emt 00:00:02]} 64. Rg7+ {[%clk 00:00:39]}
Kf8 {[%clk 00:00:37]} {[%emt 00:00:02]} 65. Rf7+ {[%clk 00:00:43]} {[%emt
00:00:02]} Kg8 {[%clk 00:00:41]} 66. Rd7 {[%emt 00:00:44]} Kf8 {[%emt
00:00:01]} 67. Rd6 {[%emt 00:00:35]} Raa8 {[%clk 00:00:00]} 68. Rd5 {[%clk
00:00:28]} 1/2-1/2

[Event "Rapid Tournament (RAP)"]
[Site "Biel, Switzerland"]
[Date "2026.07.12"]
[Round "9.39"]
[White "Materia, Mario"]
[Black "Arocha, Carlos"]
[Result "0-1"]
[TimeControl "15 + 5"]
[WhiteTitle "-"]
[BlackTitle "-"]
[WhiteFideId "651082241"]
[BlackFideId "1311590"]
[WhiteElo "1914"]
[BlackElo "1807"]

1. d4 {[%clk 00:13:39]} {[%emt 00:01:29]} g6 {[%clk 00:15:08]} {[%emt
00:00:01]} 2. c4 {[%clk 00:13:43]} {[%emt 00:00:02]} Bg7 {[%clk 00:15:09]}
{[%emt 00:00:02]} 3. Nc3 {[%clk 00:13:46]} {[%emt 00:00:04]} d6 {[%clk
00:15:10]} {[%emt 00:00:03]} 4. e4 {[%clk 00:13:49]} {[%emt 00:00:02]} Nf6
{[%clk 00:15:12]} {[%emt 00:00:03]} 5. h3 {[%clk 00:13:52]} {[%emt 00:00:03]}
a6 {[%clk 00:15:16]} {[%emt 00:00:01]} 6. Be3 {[%clk 00:13:49]} {[%emt
00:00:08]} Nbd7 {[%clk 00:15:15]} {[%emt 00:00:06]} 7. Nf3 {[%clk 00:13:48]}
{[%emt 00:00:06]} c5 {[%clk 00:15:16]} {[%emt 00:00:04]} 8. d5 {[%clk
00:13:44]} {[%emt 00:00:09]} O-O {[%clk 00:15:10]} {[%emt 00:00:11]} 9. Be2
{[%clk 00:13:18]} {[%emt 00:00:30]} Re8 {[%clk 00:15:13]} {[%emt 00:00:02]} 10.
O-O {[%clk 00:13:20]} {[%emt 00:00:04]} e6 {[%clk 00:15:17]} {[%emt 00:00:01]}
11. dxe6 {[%clk 00:12:36]} {[%emt 00:00:49]} Rxe6 {[%clk 00:15:19]} {[%emt
00:00:02]} 12. Ng5 {[%clk 00:12:39]} {[%emt 00:00:03]} Re8 {[%clk 00:14:58]}
{[%emt 00:00:25]} 13. Qxd6 {[%clk 00:12:38]} {[%emt 00:00:07]} Qe7 {[%clk
00:15:01]} {[%emt 00:00:02]} 14. Qxe7 {[%clk 00:12:24]} {[%emt 00:00:19]} Rxe7
{[%clk 00:15:04]} {[%emt 00:00:01]} 15. Bd3 {[%clk 00:10:06]} {[%emt 00:02:24]}
h6 {[%clk 00:14:59]} {[%emt 00:00:09]} 16. Nf3 {[%clk 00:10:09]} {[%emt
00:00:03]} b6 {[%clk 00:14:36]} {[%emt 00:00:28]} 17. Nd2 {[%clk 00:09:29]}
{[%emt 00:00:46]} Bb7 {[%clk 00:14:35]} {[%emt 00:00:04]} 18. f3 {[%clk
00:08:26]} {[%emt 00:01:09]} Ne5 {[%clk 00:14:01]} {[%emt 00:00:39]} 19. Bc2
{[%clk 00:08:17]} {[%emt 00:00:14]} Rd7 {[%clk 00:13:38]} {[%emt 00:00:27]} 20.
Nd5 {[%clk 00:07:45]} {[%emt 00:00:38]} Rd6 {[%clk 00:12:53]} {[%emt 00:00:51]}
21. Rad1 {[%clk 00:06:44]} {[%emt 00:01:05]} Rad8 {[%clk 00:12:44]} {[%emt
00:00:14]} 22. b3 {[%clk 00:06:20]} {[%emt 00:00:29]} g5 {[%clk 00:12:20]}
{[%emt 00:00:29]} 23. Nb1 {[%clk 00:05:51]} {[%emt 00:00:35]} Nc6 {[%clk
00:10:40]} {[%emt 00:01:44]} 24. Nbc3 {[%clk 00:05:45]} {[%emt 00:00:11]} Nh5
{[%clk 00:10:16]} {[%emt 00:00:29]} 25. Na4 {[%clk 00:04:17]} {[%emt 00:01:33]}
Nd4 {[%clk 00:10:06]} {[%emt 00:00:14]} 26. Bd3 {[%clk 00:03:43]} {[%emt
00:00:40]} Bxd5 {[%clk 00:09:49]} {[%emt 00:00:22]} 27. exd5 {[%clk 00:03:33]}
{[%emt 00:00:16]} Re8 {[%clk 00:09:42]} {[%emt 00:00:11]} 28. Rfe1 {[%clk
00:03:26]} {[%emt 00:00:12]} f5 {[%clk 00:09:32]} {[%emt 00:00:15]} 29. Bf2
{[%clk 00:03:01]} {[%emt 00:00:30]} Rxe1+ {[%clk 00:08:01]} {[%emt 00:01:36]}
30. Rxe1 {[%clk 00:03:01]} {[%emt 00:00:05]} Nf4 {[%clk 00:08:03]} {[%emt
00:00:03]} 31. Rd1 {[%clk 00:02:16]} {[%emt 00:00:50]} Kf7 {[%clk 00:06:54]}
{[%emt 00:01:14]} 32. Kh1 {[%clk 00:01:46]} {[%emt 00:00:35]} Nxd3 {[%clk
00:06:45]} {[%emt 00:00:15]} 33. Rxd3 {[%clk 00:01:44]} {[%emt 00:00:06]} Be5
{[%clk 00:06:29]} {[%emt 00:00:21]} 34. Nc3 {[%clk 00:01:39]} {[%emt 00:00:11]}
Bf6 {[%clk 00:06:15]} {[%emt 00:00:18]} 35. Bg3 {[%clk 00:01:30]} {[%emt
00:00:14]} f4 {[%clk 00:06:16]} {[%emt 00:00:04]} 36. Bf2 {[%clk 00:01:34]}
{[%emt 00:00:02]} Rd8 {[%clk 00:05:42]} {[%emt 00:00:38]} 37. Ne4 {[%clk
00:01:37]} {[%emt 00:00:02]} Bg7 {[%clk 00:05:30]} {[%emt 00:00:16]} 38. b4
{[%clk 00:01:19]} {[%emt 00:00:24]} Nf5 {[%clk 00:04:55]} {[%emt 00:00:39]} 39.
bxc5 {[%clk 00:01:22]} {[%emt 00:00:03]} bxc5 {[%clk 00:04:59]} {[%emt
00:00:01]} 40. Nxc5 {[%clk 00:01:16]} {[%emt 00:00:11]} Rb8 {[%clk 00:04:53]}
{[%emt 00:00:12]} 41. Rb3 {[%clk 00:01:13]} {[%emt 00:00:07]} Re8 {[%clk
00:04:43]} {[%emt 00:00:14]} 42. Rb7+ {[%clk 00:01:12]} {[%emt 00:00:05]} Kg6
{[%clk 00:04:46]} 43. Rb6+ {[%clk 00:00:58]} {[%emt 00:00:23]} Kh5 {[%clk
00:04:50]} {[%emt 00:00:01]} 44. Re6 {[%clk 00:01:01]} {[%emt 00:00:03]} Rb8
{[%clk 00:04:49]} {[%emt 00:00:05]} 45. Nb3 {[%clk 00:01:04]} {[%emt 00:00:02]}
a5 {[%clk 00:04:49]} {[%emt 00:00:05]} 46. a4 {[%clk 00:00:46]} {[%emt
00:00:23]} Rxb3 {[%clk 00:04:49]} {[%emt 00:00:04]} 47. c5 {[%clk 00:00:37]}
{[%emt 00:00:15]} Rb1+ {[%clk 00:04:27]} {[%emt 00:00:27]} 48. Be1 {[%clk
00:00:29]} {[%emt 00:00:13]} Ne3 {[%clk 00:04:15]} {[%emt 00:00:17]} 49. d6
{[%clk 00:00:21]} {[%emt 00:00:13]} Rxe1+ {[%clk 00:04:16]} {[%emt 00:00:04]}
50. Kh2 {[%clk 00:00:22]} {[%emt 00:00:05]} Nf1+ {[%clk 00:04:16]} {[%emt
00:00:04]} 51. Kg1 {[%clk 00:00:26]} {[%emt 00:00:01]} Rxe6 {[%clk 00:04:13]}
{[%emt 00:00:08]} 52. d7 {[%clk 00:00:30]} {[%emt 00:00:01]} Bf6 {[%clk
00:04:16]} {[%emt 00:00:02]} 53. Kxf1 {[%clk 00:00:32]} {[%emt 00:00:03]} Rc6
{[%clk 00:04:16]} {[%emt 00:00:05]} 0-1